fUSD/lending_fUSD_20250211
["ID","MTS","AMOUNT","RATE_DAILY","PERIOD"]
[352757645,1739292695493,-500.0,0.00018082,2]
[352757646,1739292695503,-775.23,0.00018082,2]
[352757647,1739292695514,-1296.08,0.00018082,2]
[352757648,1739292695524,-3453.19,0.00018082,2]
[352757649,1739292695535,-1077.77,0.00018082,2]
[352757650,1739292695545,-903.8,0.00018082,2]
[352757651,1739292695556,-1620.87,0.00018082,2]
[352757652,1739292695566,-1360.37,0.00018082,2]
[352757653,1739292695576,-871.16,0.00018082,2]
[352757654,1739292695586,-1044.51,0.00018082,2]
[352757655,1739292695595,-1892.93,0.00018082,2]
[352757656,1739292695606,-1187.32,0.00018082,2]
[352757657,1739292695616,-1128.96,0.00018082,2]
[352757658,1739292695627,-500.0,0.00018082,2]
[352757659,1739292695637,-664.21,0.00018082,2]
[352757660,1739292695648,-1085.95,0.00018082,2]
[352757661,1739292695658,-831.29,0.00018082,2]
[352757662,1739292695668,-500.0,0.00018082,2]
[352757663,1739292695678,-1315.41,0.00018082,2]
[352757664,1739292695688,-1736.09,0.00018082,2]
[352757665,1739292695699,-1449.55,0.00018082,2]
[352757666,1739292695709,-792.28,0.00018082,2]
[352757667,1739292695719,-1153.98,0.00018082,2]
[352757668,1739292695730,-500.0,0.00018082,2]
[352757669,1739292695739,-500.0,0.00018082,2]
[352757670,1739292695750,-1628.97,0.00018082,2]
[352757671,1739292695760,-1363.01,0.00018082,2]
[352757672,1739292695771,-2696.96,0.00018082,2]
[352757673,1739292695785,-1143.92,0.00018082,2]
[352757674,1739292695795,-628.01,0.00018082,2]
[352757675,1739292695805,-1164.3,0.00018082,2]
[352757676,1739292695815,-500.0,0.00018082,2]
[352757677,1739292696044,-1186.05,0.00018082,2]
[352757678,1739292696057,-1316.05,0.00018082,2]
[352757679,1739292696067,-507.5,0.00018082,2]
[352757680,1739292696077,-1204.14,0.00018082,2]
[352757681,1739292696088,-2709.34,0.00018082,2]
[352757682,1739292696098,-2432.62,0.00018082,2]
[352757683,1739292696109,-1383.14,0.00018082,2]
[352757684,1739292696120,-1113.99,0.00018082,2]
[352757685,1739292696130,-516.51,0.00018082,2]
[352757686,1739292696141,-770.35,0.00018082,2]
[352757687,1739292696152,-3406.84,0.00018082,2]
[352757688,1739292696162,-1152.94,0.00018082,2]
[352757689,1739292696173,-1081.2,0.00018082,2]
[352757690,1739292696183,-2107.97,0.00018082,2]
[352757691,1739292696193,-500.0,0.00018082,2]
[352757692,1739292696203,-1266.65,0.00018082,2]
[352757693,1739292696213,-694.27,0.00018082,2]
[352757694,1739292696224,-517.54,0.00018082,2]
[352757695,1739292696234,-760.33,0.00018082,2]
[352757696,1739292696244,-1409.01,0.00018082,2]
[352757697,1739292696255,-1622.42,0.00018082,2]
[352757698,1739292696265,-908.49,0.00018082,2]
[352757699,1739292696275,-601.98981422,0.00018082,2]
[352757700,1739292696288,-1394.87,0.00018082,2]
[352757701,1739292696298,-1146.54,0.00018082,2]
[352757702,1739292696307,-2904.03,0.00018082,2]
[352757703,1739292696317,-500.0,0.00018082,2]
[352757704,1739292696327,-881.37,0.00018082,2]
[352757705,1739292696337,-581.55,0.00018082,2]
[352757706,1739292696347,-1246.46,0.00018082,2]
[352757707,1739292696358,-963.63,0.00018082,2]
[352757708,1739292696368,-500.0,0.00018082,2]
[352757709,1739292696378,-500.0,0.00018082,2]
[352757710,1739292696388,-500.0,0.00018082,2]
[352757711,1739292696398,-500.0,0.00018082,2]
[352757712,1739292696408,-1035.86,0.00018082,2]
[352757713,1739292696418,-1186.79,0.00018082,2]
[352757714,1739292696428,-1512.18,0.00018082,2]
[352757715,1739292696438,-718.14,0.00018082,2]
[352757716,1739292696448,-1350.44,0.00018082,2]
[352757717,1739292696458,-500.0,0.00018082,2]
[352757718,1739292696468,-1320.12,0.00018082,2]
[352757719,1739292696478,-500.0,0.00018082,2]
[352757720,1739292696488,-668.38,0.00018082,2]
[352757721,1739292696498,-500.0,0.00018082,2]
[352757722,1739292696508,-500.0,0.00018082,2]
[352757723,1739292696518,-862.44,0.00018082,2]
[352757724,1739292696532,-1589.93,0.00018082,2]
[352757725,1739292696542,-985.84,0.00018082,2]
[352757726,1739292696552,-1153.41,0.00018082,2]
[352757727,1739292696562,-1534.98,0.00018082,2]
[352757728,1739292696572,-500.0,0.00018082,2]
[352757729,1739292696582,-500.0,0.00018082,2]
[352757730,1739292696593,-1581.96,0.00018082,2]
[352757731,1739292696603,-1598.66,0.00018082,2]
[352757732,1739292696612,-761.15,0.00018082,2]
[352757733,1739292696622,-500.0,0.00018082,2]
[352757734,1739292696632,-1270.11,0.00018082,2]
[352757735,1739292696642,-737.13,0.00018082,2]
[352757736,1739292696652,-992.82,0.00018082,2]
[352757737,1739292696662,-1121.5,0.00018082,2]
[352757738,1739292696671,-824.99,0.00018082,2]
[352757739,1739292696682,-1979.99,0.00018082,2]
[352757740,1739292696692,-500.0,0.00018082,2]
[352757741,1739292696702,-1201.69,0.00018082,2]
[352757742,1739292696711,-635.61,0.00018082,2]
[352757743,1739292696721,-630.2685039,0.00018082,2]
[352757744,1739292696731,-812.69,0.00018082,2]
[352757745,1739292696741,-500.0,0.00018082,2]
[352757746,1739292696751,-200.0,0.00018082,2]
[352757747,1739292696761,-2000.0,0.00018082,2]
[352757748,1739292696770,-263.27699,0.00018088,7]
[352757749,1739292696782,-500.0,0.00018099,2]
[352757750,1739292696792,-9427.54836143,0.000181,2]
[352757751,1739292696802,-666.6,0.00018124,2]
[352757752,1739292696813,-588.0,0.00018124,2]
[352757753,1739292696823,-11881.59,0.00018154,7]
[352757754,1739292696832,-11881.59,0.00018154,7]
[352757755,1739292696842,-11881.59,0.00018154,7]
[352757756,1739292696852,-11881.59,0.00018154,7]
[352757757,1739292696862,-617.67,0.00018155,2]
[352757758,1739292696872,-671.45,0.00018155,2]
[352757759,1739292696883,-929.9,0.00018155,2]
[352757760,1739292696895,-300.0,0.0001818,2]
[352757761,1739292696905,-300.0,0.0001818,2]
[352757762,1739292696915,-500.0,0.00018199,2]
[352757763,1739292696926,-2088.058,0.000182,2]
[352757764,1739292696935,-151.0,0.00018219,2]
[352757765,1739292696945,-1043.727911,0.00018219,2]
[352757766,1739292696955,-1232.861141,0.00018219,2]
[352757767,1739292696964,-500.0,0.00018219,2]
[352757768,1739292696976,-500.0,0.00018219,2]
[352757769,1739292696987,-658.54,0.00018219,2]
[352757770,1739292696998,-500.0,0.00018219,2]
[352757771,1739292697008,-708.99,0.00018219,2]
[352757772,1739292697018,-620.8,0.00018219,2]
[352757773,1739292697031,-500.0,0.00018219,2]
[352757774,1739292697042,-616.82,0.00018219,2]
[352757775,1739292697052,-533.34,0.00018219,2]
[352757776,1739292697063,-512.37,0.00018219,2]
[352757777,1739292697073,-500.0,0.00018219,2]
[352757778,1739292697083,-626.01,0.00018219,2]
[352757779,1739292697094,-593.14,0.00018219,2]
[352757780,1739292697104,-681.21,0.00018219,2]
[352757781,1739292697114,-500.0,0.00018219,2]
[352757782,1739292697123,-565.98,0.00018219,2]
[352757783,1739292697134,-500.0,0.00018219,2]
[352757784,1739292697145,-610.07,0.00018219,2]
[352757785,1739292697155,-500.0,0.00018219,2]
[352757786,1739292697165,-653.33,0.00018219,2]
[352757787,1739292697175,-500.0,0.00018219,2]
[352757788,1739292697186,-575.35,0.00018219,2]
[352757789,1739292697196,-543.76,0.00018219,2]
[352757790,1739292697206,-560.98,0.00018219,2]
[352757791,1739292697215,-500.0,0.00018219,2]
[352757792,1739292697225,-504.72,0.00018219,2]
[352757793,1739292697234,-500.0,0.00018219,2]
[352757794,1739292697243,-500.0,0.00018219,2]
[352757795,1739292697253,-500.0,0.00018219,2]
[352757796,1739292697263,-721.21,0.00018219,2]
[352757797,1739292697273,-500.0,0.00018219,2]
[352757798,1739292697287,-500.0,0.00018219,2]
[352757799,1739292697297,-500.0,0.00018219,2]
[352757800,1739292697308,-686.28,0.00018219,2]
[352757801,1739292697318,-500.0,0.00018219,2]
[352757802,1739292697328,-628.87,0.00018219,2]
[352757803,1739292697338,-500.0,0.00018219,2]
[352757804,1739292697348,-656.08,0.00018219,2]
[352757805,1739292697359,-151.07732248,0.00018219,2]
[352757806,1739292697370,-973.03,0.00018219,2]
[352757807,1739292697380,-769.16,0.00018219,2]
[352757808,1739292697390,-500.0,0.00018219,2]
[352757809,1739292697400,-500.0,0.00018219,2]
[352757810,1739292697410,-2633.29,0.00018219,2]
[352757811,1739292697419,-608.46,0.00018219,2]
[352757812,1739292697429,-500.0,0.00018219,2]
[352757813,1739292697440,-562.42,0.00018219,2]
[352757814,1739292697450,-702.19,0.00018219,2]
[352757815,1739292697460,-580.73,0.00018219,2]
[352757816,1739292697470,-603.78,0.00018219,2]
[352757817,1739292697480,-500.0,0.00018219,2]
[352757818,1739292697489,-500.0,0.00018219,2]
[352757819,1739292697499,-500.0,0.00018219,2]
[352757820,1739292697508,-500.0,0.00018219,2]
[352757821,1739292697518,-521.19,0.00018219,2]
[352757822,1739292697530,-1362.81,0.00018219,2]
[352757823,1739292697540,-557.52,0.00018219,2]
[352757824,1739292697550,-1147.2,0.00018219,2]
[352757825,1739292697560,-500.0,0.00018219,2]
[352757826,1739292697570,-500.0,0.00018219,2]
[352757827,1739292697580,-681.22,0.00018219,2]
[352757828,1739292697590,-765.29,0.00018219,2]
[352757829,1739292697599,-564.9417936,0.00018219,2]
[352757830,1739292697610,-460.8258392,0.00018219,2]
[352757831,1739292697619,-500.0,0.00018219,2]
[352757832,1739292697629,-500.0,0.00018219,2]
[352757833,1739292697639,-659.27,0.00018219,2]
[352757834,1739292697648,-500.0,0.00018219,2]
[352757835,1739292697657,-571.46,0.00018219,2]
[352757836,1739292697668,-500.0,0.00018219,2]
[352757837,1739292697678,-567.07,0.00018219,2]
[352757838,1739292697687,-500.0,0.00018219,2]
[352757839,1739292697697,-1328.94,0.00018219,2]
[352757840,1739292697707,-702.14,0.00018219,2]
[352757841,1739292697716,-653.21,0.00018219,2]
[352757842,1739292697727,-500.0,0.00018219,2]
[352757843,1739292697737,-505.62,0.00018219,2]
[352757844,1739292697747,-781.92,0.00018219,2]
[352757845,1739292697757,-768.57,0.00018219,2]
[352757846,1739292697768,-733.07,0.00018219,2]
[352757847,1739292697781,-607.06,0.00018219,2]
[352757848,1739292697791,-708.15,0.00018219,2]
[352757849,1739292697801,-500.0,0.00018219,2]
[352757850,1739292697811,-1118.08,0.00018219,2]
[352757851,1739292697820,-500.0,0.00018219,2]
[352757852,1739292697830,-625.22391284,0.00018219,2]
[352757853,1739292697840,-1638.68,0.00018219,2]
[352757854,1739292697850,-500.0,0.00018219,2]
[352757855,1739292697860,-972.23,0.00018219,2]
[352757856,1739292697870,-500.0,0.00018219,2]
[352757857,1739292697882,-1025.95,0.00018219,2]
[352757858,1739292697894,-849.42,0.00018219,2]
[352757859,1739292697905,-589.34,0.00018219,2]
[352757860,1739292697915,-949.12,0.00018219,2]
[352757861,1739292697926,-623.19,0.00018219,2]
[352757862,1739292697936,-774.19,0.00018219,2]
[352757863,1739292697946,-592.84,0.00018219,2]
[352757864,1739292697956,-897.44,0.00018219,2]
[352757865,1739292697969,-1236.71,0.00018219,2]
[352757866,1739292697979,-1146.12,0.00018219,2]
[352757867,1739292697988,-877.02,0.00018219,2]
[352757868,1739292697998,-500.0,0.00018219,2]
[352757869,1739292698008,-636.96,0.00018219,2]
[352757870,1739292698018,-851.21,0.00018219,2]
[352757871,1739292698029,-1026.57,0.00018219,2]
[352757872,1739292698038,-1722.06,0.00018219,2]
[352757873,1739292698048,-755.82,0.00018219,2]
[352757874,1739292698058,-500.0,0.00018219,2]
[352757875,1739292698068,-500.0,0.00018219,2]
[352757876,1739292698078,-1007.91,0.00018219,2]
[352757877,1739292698087,-1556.32,0.00018219,2]
[352757878,1739292698098,-743.69,0.00018219,2]
[352757879,1739292698108,-787.8,0.00018219,2]
[352757880,1739292698118,-500.0,0.00018219,2]
[352757881,1739292698127,-775.23,0.00018219,2]
[352757882,1739292698138,-1296.08,0.00018219,2]
[352757883,1739292698148,-3453.19,0.00018219,2]
[352757884,1739292698159,-1077.77,0.00018219,2]
[352757885,1739292698168,-903.8,0.00018219,2]
[352757886,1739292698178,-1620.87,0.00018219,2]
[352757887,1739292698188,-1360.37,0.00018219,2]
[352757888,1739292698197,-871.16,0.00018219,2]
[352757889,1739292698207,-1044.51,0.00018219,2]
[352757890,1739292698217,-1892.93,0.00018219,2]
[352757891,1739292698228,-1187.32,0.00018219,2]
[352757892,1739292698238,-1128.96,0.00018219,2]
[352757893,1739292698249,-500.0,0.00018219,2]
[352757894,1739292698259,-664.21,0.00018219,2]
[352757895,1739292698269,-1085.95,0.00018219,2]
[352757896,1739292698281,-831.29,0.00018219,2]
[352757897,1739292698290,-500.0,0.00018219,2]
[352757898,1739292698300,-1315.41,0.00018219,2]
[352757899,1739292698311,-1736.09,0.00018219,2]
[352757900,1739292698322,-1449.55,0.00018219,2]
[352757901,1739292698332,-792.28,0.00018219,2]
[352757902,1739292698342,-1153.98,0.00018219,2]
[352757903,1739292698352,-500.0,0.00018219,2]
[352757904,1739292698362,-500.0,0.00018219,2]
[352757905,1739292698372,-1628.97,0.00018219,2]
[352757906,1739292698381,-1363.01,0.00018219,2]
[352757907,1739292698391,-2696.96,0.00018219,2]
[352757908,1739292698401,-1143.92,0.00018219,2]
[352757909,1739292698411,-628.01,0.00018219,2]
[352757910,1739292698420,-1164.3,0.00018219,2]
[352757911,1739292698430,-500.0,0.00018219,2]
[352757912,1739292698440,-1186.05,0.00018219,2]
[352757913,1739292698450,-1316.05,0.00018219,2]
[352757914,1739292698459,-507.5,0.00018219,2]
[352757915,1739292698468,-1204.14,0.00018219,2]
[352757916,1739292698478,-2709.34,0.00018219,2]
[352757917,1739292698488,-2432.62,0.00018219,2]
[352757918,1739292698497,-1383.14,0.00018219,2]
[352757919,1739292698507,-1113.99,0.00018219,2]
[352757920,1739292698517,-516.51,0.00018219,2]
[352757921,1739292698527,-770.35,0.00018219,2]
[352757922,1739292698537,-3406.84,0.00018219,2]
[352757923,1739292698547,-1152.94,0.00018219,2]
[352757924,1739292698558,-1081.2,0.00018219,2]
[352757925,1739292698567,-2107.97,0.00018219,2]
[352757926,1739292698577,-500.0,0.00018219,2]
[352757927,1739292698586,-1266.65,0.00018219,2]
[352757928,1739292698595,-694.27,0.00018219,2]
[352757929,1739292698606,-517.54,0.00018219,2]
[352757930,1739292698616,-760.33,0.00018219,2]
[352757931,1739292698626,-1622.42,0.00018219,2]
[352757932,1739292698636,-1409.01,0.00018219,2]
[352757933,1739292698646,-908.49,0.00018219,2]
[352757934,1739292698655,-1394.87,0.00018219,2]
[352757935,1739292698665,-1146.54,0.00018219,2]
[352757936,1739292698674,-2904.03,0.00018219,2]
[352757937,1739292698684,-881.37,0.00018219,2]
[352757938,1739292698693,-500.0,0.00018219,2]
[352757939,1739292698703,-581.55,0.00018219,2]
[352757940,1739292698712,-1246.46,0.00018219,2]
[352757941,1739292698722,-963.63,0.00018219,2]
[352757942,1739292698731,-500.0,0.00018219,2]
[352757943,1739292698740,-500.0,0.00018219,2]
[352757944,1739292698750,-500.0,0.00018219,2]
[352757945,1739292698759,-500.0,0.00018219,2]
[352757946,1739292698768,-1035.86,0.00018219,2]
[352757947,1739292698780,-1186.79,0.00018219,2]
[352757948,1739292698789,-1512.18,0.00018219,2]
[352757949,1739292698800,-718.14,0.00018219,2]
[352757950,1739292698809,-1350.44,0.00018219,2]
[352757951,1739292698819,-500.0,0.00018219,2]
[352757952,1739292698828,-1320.12,0.00018219,2]
[352757953,1739292698838,-500.0,0.00018219,2]
[352757954,1739292698848,-668.38,0.00018219,2]
[352757955,1739292698858,-500.0,0.00018219,2]
[352757956,1739292698867,-500.0,0.00018219,2]
[352757957,1739292698880,-862.44,0.00018219,2]
[352757958,1739292698892,-1589.93,0.00018219,2]
[352757959,1739292698901,-985.84,0.00018219,2]
[352757960,1739292698910,-1153.41,0.00018219,2]
[352757961,1739292698920,-1534.98,0.00018219,2]
[352757962,1739292698930,-500.0,0.00018219,2]
[352757963,1739292698940,-500.0,0.00018219,2]
[352757964,1739292698950,-1581.96,0.00018219,2]
[352757965,1739292698962,-1598.66,0.00018219,2]
[352757966,1739292698971,-761.15,0.00018219,2]
[352757967,1739292698980,-500.0,0.00018219,2]
[352757968,1739292698990,-1270.11,0.00018219,2]
[352757969,1739292698999,-737.13,0.00018219,2]
[352757970,1739292699009,-992.82,0.00018219,2]
[352757971,1739292699018,-1121.5,0.00018219,2]
[352757972,1739292699028,-824.99,0.00018219,2]
[352757973,1739292699038,-1979.99,0.00018219,2]
[352757974,1739292699048,-500.0,0.00018219,2]
[352757975,1739292699058,-1201.69,0.00018219,2]
[352757976,1739292699067,-635.61,0.00018219,2]
[352757977,1739292699077,-812.69,0.00018219,2]
[352757978,1739292699086,-335.23542029,0.00018219,2]
[352757979,1739292699096,-10395.55057901,0.00018249,5]
[352757980,1739292699106,-320.50470785,0.0001826,2]
[352757981,1739292699116,-666.6,0.00018261,2]
[352757982,1739292699126,-263.27699,0.00018288,7]
[352757983,1739292699136,-1741683.87162143,0.00018292,5]
[352757984,1739292699612,-102770.3605781,0.00018292,5]
[352757985,1739292699856,-1000.0,0.00017671,2]
[352757986,1739292699866,-564.44779208,0.00018292,5]
[352757987,1739292699877,-260.72299452,0.00018292,5]
[352757988,1739292699889,-367.58584536,0.00018292,5]
[352757989,1739292699908,-635.05,0.00017123,2]
[352757990,1739292699917,-48.793,0.00018292,5]
[352757991,1739292699929,-332.19753609,0.00018292,5]
[352757992,1739292699946,-695.98,0.00017671,2]
[352757993,1739292699957,-472.68,0.00017671,2]
[352757994,1739292699968,-258.63115522,0.00018292,5]
[352757995,1739292699989,-483.34970256,0.0001726,2]
[352757996,1739292700002,-1767.76029744,0.0001726,2]
[352757997,1739292700012,-1000.0,0.00017808,2]
[352757998,1739292700021,-414.64731865,0.00018292,5]
[352757999,1739292700033,-23009.59042858,0.00018292,5]
[352758000,1739292700494,-1748.3017063,0.00016441,2]
[352758001,1739292700516,-679.62379549,0.00016441,2]
[352758002,1739292700543,-682.09081883,0.00016115,5]
[352758003,1739292700816,-335.88161692,0.00016115,5]
[352758004,1739292700827,-163.35,0.00016428,3]
[352758005,1739292700835,-559.44872879,0.00016437,5]
[352758006,1739292700867,-458.52370696,0.00016437,5]
[352758007,1739292700878,-4768.00715835,0.00016441,2]
[352758008,1739292700905,-2336.51863133,0.00016441,2]
[352758009,1739292700914,-9532.45129147,0.00016492,2]
[352758010,1739292700925,-1003.193857,0.00016575,2]
[352758011,1739292700934,-1003.193857,0.00016575,2]
[352758012,1739292700943,-1003.193857,0.00016712,2]
[352758013,1739292700953,-1003.193857,0.00016712,2]
[352758014,1739292700962,-1003.193857,0.00016848,2]
[352758015,1739292700972,-1003.193857,0.00016849,2]
[352758016,1739292700982,-1003.193857,0.0001689,2]
[352758017,1739292700991,-635.05,0.0001726,2]
[352758018,1739292701001,-2251.11,0.00017397,2]
[352758019,1739292701011,-635.05,0.00017397,2]
[352758020,1739292701020,-2251.11,0.00017534,2]
[352758021,1739292701030,-477.75157428,0.00017534,2]
[352758023,1739292913883,3410.488487,8.836e-05,2]
[352758024,1739292914097,5022.649513,8.836e-05,2]
[352758025,1739292960619,-9686.4503,8.973e-05,2]
[352758026,1739293027388,465.8836,8.699e-05,2]
[352758027,1739293206935,-1425.1538,8.851e-05,2]
[352758028,1739293207515,1029.4488,8.836e-05,2]
[352758029,1739293268822,1644.4037,8.836e-05,2]
[352758030,1739293306842,267.7254,8.119e-05,2]
[352758035,1739293782515,2000.0,0.0002,120]
[352758041,1739293832167,1000.0,8e-05,2]
[352758051,1739293832441,-460.36,0.00010137,2]
[352758052,1739293832453,-495.36,0.00010181,2]
[352758053,1739293832463,-499.83,0.00010221,2]
[352758054,1739293832473,-500.16,0.00010299,2]
[352758055,1739293832483,-507.69,0.00010446,2]
[352758056,1739293832494,-14619.48242538,0.0001083,2]
[352758057,1739293832504,-200.0,0.00010831,2]
[352758058,1739293832515,-200.0,0.00010833,2]
[352758059,1739293832525,-14619.48242538,0.0001084,2]
[352758060,1739293832535,-200.0,0.00010845,2]
[352758061,1739293832546,-14619.48242538,0.00010847,2]
[352758062,1739293832556,-471.64279075,0.00010853,2]
[352758063,1739293832567,-200.0,0.00010853,2]
[352758064,1739293832578,-471.64279075,0.00010857,2]
[352758065,1739293832588,-471.64279075,0.00010861,2]
[352758066,1739293832598,-471.64279075,0.00010862,2]
[352758067,1739293832608,-471.64279075,0.00010872,2]
[352758068,1739293832618,-14619.48242538,0.00010879,2]
[352758069,1739293832628,-471.64279075,0.0001088,2]
[352758070,1739293832638,-471.64279075,0.00010886,2]
[352758071,1739293832647,-471.64279075,0.00010893,2]
[352758072,1739293832657,-166.66666667,0.000113,2]
[352758073,1739293832667,-172.33,0.000114,2]
[352758074,1739293832677,-158.33,0.00011602,2]
[352758075,1739293832688,-574.65,0.00012896,2]
[352758076,1739293832700,-550.0,0.00013,2]
[352758077,1739293832710,-150.0,0.00013423,2]
[352758078,1739293832719,-1000.0,0.00013424,2]
[352758079,1739293832729,-1000.0,0.00013424,2]
[352758080,1739293832739,-1000.0,0.00013424,2]
[352758081,1739293832748,-1000.0,0.00013424,2]
[352758082,1739293832758,-1000.0,0.00013424,2]
[352758083,1739293832768,-1000.0,0.00013424,2]
[352758084,1739293832778,-1000.0,0.00013424,2]
[352758085,1739293832788,-1000.0,0.00013424,2]
[352758086,1739293832798,-1000.0,0.00013424,2]
[352758087,1739293832807,-1000.0,0.00013424,2]
[352758088,1739293832817,-150.0,0.00013484,2]
[352758089,1739293832826,-155.96,0.00013699,2]
[352758090,1739293832836,-200.0,0.000137,2]
[352758091,1739293832845,-189.69647162,0.00014456,2]
[352758092,1739293832855,-500.0,0.00014456,2]
[352758093,1739293832865,-1000.0,0.00014503,2]
[352758094,1739293832875,-273.2,0.00014533,2]
[352758095,1739293832884,-1010.92,0.00014617,2]
[352758096,1739293832894,-2000.0,0.00014639,2]
[352758097,1739293832904,-13770.24,0.0001469,2]
[352758098,1739293832914,-732.83,0.00014693,2]
[352758099,1739293832923,-1681.99,0.00014756,2]
[352758101,1739293832932,-614.89,0.00014798,2]
[352758103,1739293832942,-200.0,0.00014914,2]
[352758105,1739293832954,-4000.0,0.00014925,2]
[352758107,1739293832964,-166.66666667,0.00015,2]
[352758109,1739293832974,-600.0,0.00015,2]
[352758111,1739293832983,-178.31,0.0001506,2]
[352758113,1739293832993,-300.0,0.000151,2]
[352758115,1739293833003,-574.65,0.00015159,2]
[352758117,1739293833013,-1075.31,0.0001531,2]
[352758119,1739293833023,-548.57,0.0001531,2]
[352758122,1739293833034,-386.81,0.00015568,2]
[352758123,1739293833043,-386.81,0.00015572,2]
[352758125,1739293833053,-386.81,0.00015577,2]
[352758127,1739293833063,-386.81,0.00015581,2]
[352758130,1739293833073,-386.81,0.00015585,2]
[352758133,1739293833083,-386.81,0.00015589,2]
[352758135,1739293833093,-386.81,0.00015593,2]
[352758136,1739293833104,-1500.0,0.00015596,2]
[352758139,1739293833114,-386.81,0.00015597,2]
[352758140,1739293833127,-386.81,0.00015601,2]
[352758143,1739293833136,-386.81,0.00015605,2]
[352758145,1739293833147,-386.81,0.00015609,2]
[352758146,1739293833157,-386.81,0.00015614,2]
[352758148,1739293833167,-386.81,0.00015618,2]
[352758150,1739293833177,-386.81,0.00015622,2]
[352758152,1739293833186,-168.51,0.00015623,2]
[352758154,1739293833198,-386.81,0.00015626,2]
[352758156,1739293833209,-386.81,0.0001563,2]
[352758159,1739293833220,-386.81,0.00015634,2]
[352758160,1739293833234,-386.81,0.00015638,2]
[352758163,1739293833244,-386.81,0.00015642,2]
[352758165,1739293833254,-386.81,0.00015646,2]
[352758167,1739293833265,-501.88,0.0001592,2]
[352758169,1739293833274,-150.0,0.00016,2]
[352758171,1739293833284,-1000.0,0.00016069,2]
[352758173,1739293833294,-1069.60902586,0.00016244,2]
[352758174,1739293833306,-505.54,0.00016244,2]
[352758177,1739293833317,-507.11,0.00016244,2]
[352758179,1739293833327,-498.55,0.00016244,2]
[352758180,1739293833338,-6046.0,0.000163,3]
[352758182,1739293833348,-2000.0,0.00016311,2]
[352758184,1739293833358,-1000.0,0.00016316,2]
[352758186,1739293833368,-1351.32745807,0.00016338,2]
[352758188,1739293833379,-199.06,0.0001638,2]
[352758191,1739293833390,-289.3695672,0.000164,2]
[352758192,1739293833399,-816.78,0.00016428,3]
[352758194,1739293833409,-1000.0,0.00016437,2]
[352758197,1739293833419,-501.31841513,0.00016438,2]
[352758199,1739293833429,-500.0,0.00016438,2]
[352758201,1739293833440,-500.0,0.00016438,2]
[352758203,1739293833453,-638.72155357,0.00016438,2]
[352758205,1739293833463,-500.0,0.00016438,2]
[352758207,1739293833474,-500.0,0.00016438,2]
[352758209,1739293833484,-500.0,0.00016438,2]
[352758211,1739293833494,-500.0,0.00016438,2]
[352758213,1739293833504,-500.0,0.00016438,2]
[352758215,1739293833514,-500.0,0.00016438,2]
[352758217,1739293833525,-500.0,0.00016438,2]
[352758219,1739293833535,-500.0,0.00016438,2]
[352758221,1739293833545,-500.0,0.00016438,2]
[352758222,1739293833556,-500.0,0.00016438,2]
[352758223,1739293833567,-500.0,0.00016438,2]
[352758224,1739293833578,-500.0,0.00016438,2]
[352758225,1739293833588,-500.0,0.00016438,2]